Cogmind - Beta 16.1 @@@ ROGUE MODE // 2026.03.14 @ 06:44:07 Player: spider Result: Self-destructed Performance ------------- Evolutions (9) 4500 Regions Visited (24) 4800 Robots Destroyed (361) 1805 Value Destroyed (17734) 17734 Prototype IDs (91) 1820 Alien Tech Used (4) 800 Bonus (13849) 13849 TOTAL SCORE: 45308 Bonus ------- High Alert Combat Kills 3713 Follower Combat Kills 1436 Entered Garrisons 200 Network Hubs Disabled 200 Acquired ECA 300 Met Warlord at Base 500 MAIN.C Attacked Warlord 500 Warlord Defense Kills 220 Built Enhanced Grunts 300 Met R17 at Cetus 500 Met R17 at Research 2000 Met Warlord at Research 2000 Scanned by Researcher 500 Met Warlord at Command 2000 Friendly Fire -520 Cogmind --------- Core Integrity 1452/1600 Matter 221/300 Energy 455/465 System Corruption 21% Temperature Cool (0) Movement Hovering (45) Location -1/Command Parts ------- > --- POWER (3) -------- Light Particle Reactor Light Quantum Reactor Vortex-Quantum Reactor > --- PROPULSION (6) --- Hovering Antigrav-Combat Exoskeleton > --- UTILITY (12) ----- Armored Scrap Engine Coolant Network Concept Antigrav Storage Unit Seismic Detector Experimental Core Analyzer SHELL Armor Experimental Force Field > --- WEAPON (4) ------- Concept Plasma Driver Linear Accelerator Enhanced Hardcell Cannon > --- INVENTORY (25) --- Quantum Reactor Concept Thermoelectric Network Concept Chromion Battery (800) Concept Chromion Battery (800) Concept NT7 Matterbank (713) Concept Cloak Mesh Heavy Regenerative Plating Thermal Barrier Experimental EM Shield Concept Energy Mantle Concept Energy Mantle Advanced Point Defense System Concept Matter Streamer High-powered Transdimensional Reconstructor Subatomic Replicator Enhanced Nova Cannon Concept Plasma Driver Concept Plasma Driver Enhanced Hardcell Cannon Perforator Concept Helical Railcannon Enhanced Gamma Bomb Array Advanced Micro-nuke Launcher Peak State ------------ > --- POWER ------------ Vortex Chain Reactor > --- PROPULSION ------- Hovering Antigrav-Combat Exoskeleton > --- UTILITY ---------- Armored Scrap Engine Coolant Network Concept Antigrav Storage Unit Advanced Sensor Array Experimental Core Analyzer Concept Cloak Mesh SHELL Armor Advanced Force Field > --- WEAPON ----------- Enhanced Nova Cannon Concept Plasma Driver Enhanced Hardcell Cannon Enhanced Hardcell Cannon > --- INVENTORY -------- Concept Thermoelectric Network Concept Chromion Battery Concept Chromion Battery Concept NT7 Matterbank Advanced Weapon Cycler Heavy Regenerative Plating Thermal Barrier Experimental EM Shield Experimental Force Field Concept Energy Mantle Concept Energy Mantle Advanced Point Defense System Concept Matter Streamer High-powered Transdimensional Reconstructor Subatomic Replicator Vortex Driver Enhanced Nova Cannon Concept Plasma Driver Concept Plasma Driver Perforator Concept Helical Railcannon Enhanced Gamma Bomb Array Advanced Micro-nuke Launcher [Rating: 249] Favorites ----------- Power Improved Deuterium Engine Engine Improved Deuterium Engine Power Core Neutrino Core Reactor Constructs Propulsion Light Treads Treads Light Treads Leg Advanced VSS Leg Wheel Armored Huge Wheel Hover Unit Constructs Utility Huge Storage Unit Device Armored Scrap Engine Storage Huge Storage Unit Processor Advanced Signal Interpreter Hackware Advanced Hacking Suite Protection Gun Armor Weapon Beam Rifle Energy Gun Beam Rifle Energy Cannon Enhanced Nova Cannon Ballistic Gun Constructs Ballistic Cannon Mini Assault Cannon Launcher Enhanced Gamma Bomb Array Impact Weapon Core Stripper Slashing Weapon Chainsword Build | -11 -10 -10 -8 -8 -7 -7 -7 -5 -5 -5 -5 -5 -4 -4 -4 -4 -3 -3 -3 -2 -2 -2 -1 -1 ------- Run | Yrd Mat Sub Mat Gar Fac Sto Rec Fac Ext Cet Arc Hub Fac Upp Upp War Pro Res Tes Res Qua Frg Acc Com Slots Evolved 18 | . . . 4 . 2 . . 4 . . . . 2 . . . . 2 . 2 . . 2 . Power 2 | . . . . . . . . 1 . . . . . . . . . . . . . . 1 . Propulsion 4 | . . . 2 . 1 . . . . . . . 1 . . . . . . . . . . . Utility 10 | . . . 2 . . . . 3 . . . . 1 . . . . 2 . 1 . . 1 . Weapon 2 | . . . . . 1 . . . . . . . . . . . . . . 1 . . . . Parts Attached 197 | 7 4 7 25 15 5 11 5 10 20 4 6 3 6 2 . 6 1 6 4 11 12 16 6 5 Power 23 | 1 . . 4 2 . 2 1 2 5 1 . . . . . . . . . . 1 . . 4 Engine 8 | 1 . . 3 1 . 2 1 . . . . . . . . . . . . . . . . . Core 8 | . . . 1 1 . . . . 5 . . . . . . . . . . . . . . 1 Reactor 7 | . . . . . . . . 2 . 1 . . . . . . . . . . 1 . . 3 Propulsion 26 | 2 . 1 7 4 1 6 1 . . . . . 2 . . . . 1 . 1 . . . . Treads 20 | 2 . 1 6 4 . 6 1 . . . . . . . . . . . . . . . . . Leg 3 | . . . . . . . . . . . . . 2 . . . . . . 1 . . . . Wheel 2 | . . . 1 . 1 . . . . . . . . . . . . . . . . . . . Hover 1 | . . . . . . . . . . . . . . . . . . 1 . . . . . . Flight . | . . . . . . . . . . . . . . . . . . . . . . . . . Utility 86 | 2 2 2 5 1 1 2 1 6 11 2 5 3 2 2 . 4 1 4 3 6 8 12 1 . Device 38 | 1 . . 2 1 1 . 1 2 2 . 2 . 2 1 . 1 1 1 2 3 6 8 1 . Storage 11 | 1 2 . . . . . . . . . 1 1 . . . 2 . 1 . . . 3 . . Processor 7 | . . . . . . . . 1 . . . . . 1 . . . . . 3 1 1 . . Hackware 4 | . . . . . . . . . 1 . . 2 . . . . . 1 . . . . . . Protection 26 | . . 2 3 . . 2 . 3 8 2 2 . . . . 1 . 1 1 . 1 . . . Artifact . | . . . . . . . . . . . . . . . . . . . . . . . . . Weapon 62 | 2 2 4 9 8 3 1 2 2 4 1 1 . 2 . . 2 . 1 1 4 3 4 5 1 Energy Gun 12 | 1 . . 5 3 . 1 1 . . . . . . . . . . . 1 . . . . . Energy Cannon 14 | . . 1 1 . . . . 1 . . . . . . . 1 . 1 . 1 2 3 2 1 Ballistic Gun 15 | 1 1 3 2 2 . . . 1 2 1 1 . . . . 1 . . . . . . . . Ballistic Cannon 9 | . . . . . 2 . . . 1 . . . 1 . . . . . . 1 . 1 3 . Launcher 10 | . 1 . 1 3 1 . . . 1 . . . 1 . . . . . . 2 . . . . Special Weapon . | . . . . . . . . . . . . . . . . . . . . . . . . . Impact Weapon 1 | . . . . . . . . . . . . . . . . . . . . . 1 . . . Slashing Weapon 1 | . . . . . . . 1 . . . . . . . . . . . . . . . . . Piercing Weapon . | . . . . . . . . . . . . . . . . . . . . . . . . . Special Melee Weapon . | . . . . . . . . . . . . . . . . . . . . . . . . . Unidentified Prototypes 44 | . . 1 1 . 1 . 1 1 . 1 2 . 1 . . 4 . 2 3 7 9 10 . . Corrupted Parts 6 | . . . . . . . . . 1 . 1 . . . . 1 . . . . . 2 . 1 System Corruption 28 | . . . . . . . . . 9 . 2 . . . . 7 . . . . . 6 . 4 Parts Lost 38 | . . 2 12 3 . 10 1 2 3 . . 1 . . . 1 . . . . . . . 3 Power 10 | . . . 3 2 . 1 1 . 2 . . . . . . . . . . . . . . 1 Propulsion 10 | . . 1 4 1 . 4 . . . . . . . . . . . . . . . . . . Utility 8 | . . 1 1 . . 2 . 1 . . . 1 . . . 1 . . . . . . . 1 Weapon 10 | . . . 4 . . 3 . 1 1 . . . . . . . . . . . . . . 1 Highest Loss Streak 5 | . . 2 3 1 . 5 1 1 1 . . 1 . . . 1 . . . . . . . 2 To Critical Strikes . | . . . . . . . . . . . . . . . . . . . . . . . . . Average Backups 22 | 4 9 14 21 23 24 24 24 24 24 23 23 23 24 25 25 24 23 22 20 18 19 21 23 23 Power . | . 1 1 1 . 1 . . . 1 1 1 1 1 1 1 . 1 1 1 1 . . . . Propulsion 2 | 1 2 3 4 3 3 2 2 3 2 1 1 . 1 . . . 1 1 . . . . . . Utility 10 | . 2 4 5 5 6 7 9 13 14 15 15 17 15 17 17 16 15 13 12 9 10 12 12 12 Weapon 8 | . 3 5 9 12 13 13 11 6 6 5 4 4 6 7 7 6 6 6 6 6 5 6 8 8 Tool/Special . | . . . . . . . . . . . . . . . . . . . . . . . . . Unused Backups 81 | . 2 . 12 5 2 . 10 5 4 3 1 1 5 . . 5 . 4 6 4 1 2 . 9 Power 10 | . . . 2 1 . . . 1 . 1 . . . . . 1 . . 1 . . 2 . 1 Propulsion 10 | . 1 . 2 2 . . . . . . 1 1 2 . . . . . 1 . . . . . Utility 38 | . 1 . 6 . 2 . 6 2 2 . . . 2 . . 3 . 3 4 2 . . . 5 Weapon 21 | . . . 2 2 . . 4 2 2 2 . . 1 . . 1 . 1 . 2 1 . . 1 Tool/Special 2 | . . . . . . . . . . . . . . . . . . . . . . . . 2 Average Slot Usage (%) 72 | . 98 92 81 90 83 84 67 60 69 66 66 69 64 68 68 62 68 70 67 65 68 57 54 59 Engine 4 | . 14 12 7 3 7 6 6 . . . . . . . . . . . . . . . . . Reactor 2 | . . . . . . . . 10 3 4 7 11 5 5 5 5 5 4 4 4 4 4 4 8 Treads 11 | . 27 25 16 33 21 23 15 3 3 . . . 1 . . 3 5 1 . . . . . . Leg 1 | . . . . . . . . . 1 5 5 5 5 10 10 4 5 1 . 5 8 5 2 . Wheel 1 | . . . 7 . 6 4 3 1 . . . . . . . . . . . . . . . . Device 11 | . 14 8 7 11 14 8 7 13 10 11 12 10 18 15 15 14 19 19 18 19 16 17 19 19 Storage 6 | . 14 12 7 8 7 7 7 5 5 5 6 5 5 5 5 5 5 4 4 4 4 4 4 4 Processor 1 | . . . . . . . . . . . . . . 4 5 5 5 4 4 6 13 8 4 4 Hackware 1 | . . . . . . . . . 4 5 5 8 5 5 5 4 . 3 4 2 . . . . Protection 8 | . . 4 15 12 7 12 9 13 11 11 7 7 7 5 5 6 6 9 6 4 4 4 4 4 Energy Gun 4 | . 13 5 8 6 4 8 8 . . . . . . . . . . . . 1 . . . . Energy Cannon 3 | . . 5 . . . . . 4 . . 3 5 5 5 5 9 12 14 13 13 8 7 5 6 Ballistic Gun 5 | . 13 16 7 8 10 8 . 4 12 11 8 11 9 10 10 2 . . . . 3 . . . Ballistic Cannon 1 | . . . . . 4 3 4 . 2 1 . . . . . . . . . . 2 1 8 8 Peak Build Rating 249 | 7 8 21 42 39 49 61 66 100 105 115 119 119 141 137 137 156 155 172 179 203 225 244 249 246 Average Rating 91 | 4 7 13 39 35 46 53 55 91 96 106 112 116 126 136 137 138 151 169 173 188 205 215 239 237 On Entrance 108 | . 7 8 21 36 37 47 45 60 100 103 110 119 112 133 137 137 155 151 170 174 199 204 221 234 Avg Prop Armor Cover (%) 3 | . . . 9 . 15 13 11 . . . . . 1 1 1 1 1 1 1 2 1 1 . . Naked Turns . | . . . . . . . . . . . . . . . . . . . . . . . . . Heaviest Build 219 | 14 91 99 111 107 107 113 110 139 139 145 150 149 156 150 143 166 163 171 178 196 203 219 169 174 Greatest Support 281 | 40 40 40 86 86 28 88 108 116 116 80 80 80 209 209 209 267 267 275 281 275 244 244 244 190 Greatest Overweight (x) 5 | . 2 2 5 1 3 4 5 2 1 1 1 1 1 . . . . . . . . . . . Average Overweight (x) . | . 1 2 2 1 3 2 1 1 1 1 1 1 . . . . . . . . . . . . Largest Inventory Capacity 25 | 8 25 25 25 25 25 25 25 25 25 25 25 25 25 25 25 25 25 25 25 25 25 25 25 25 Average Capacity 24 | 5 19 25 25 25 25 25 25 25 25 25 25 25 25 25 25 25 25 25 25 25 25 25 25 25 Most Carried 25 | 6 11 17 25 25 25 25 25 25 25 25 25 25 25 25 25 25 25 25 25 25 25 25 25 25 Average Carried 23 | 4 9 14 24 24 24 24 24 24 24 24 24 24 24 24 25 24 25 24 24 24 24 24 24 24 Final Capacity 25 | 8 25 25 25 25 25 25 25 25 25 25 25 25 25 25 25 25 25 25 25 25 25 25 25 25 Final Carried 25 | 5 11 17 25 24 25 25 25 25 25 25 25 22 25 25 25 25 25 25 25 25 25 25 25 25 Scrap Engine Consumption 233 | . . . . . . . 63 11 19 12 5 2 10 . 1 19 1 2 2 57 12 9 . 8 Constructs Created 9 | . . . . . . . 3 1 . . 1 . . . . 1 . . . 1 . 1 . 1 Constructs Modified 76 | . . . . . . . 20 1 6 4 2 1 4 . . 8 . 1 . 21 6 1 1 . Class Distribution -------------------- 21% | Construct 15% | Commander-Construct 14% | Scavenger-Mutant 12% | Mutant 9% | Commander-Mutant 8% | Scavenger-Tank 8% | Gunner 3% | Scavenger-Construct Dominant Class ---------------- Mutant | -10/Materials Mutant | -10/Subcaves Scavenger-Mutant | -8/Materials Scavenger-Mutant | -8/Garrison Scavenger-Gunner | -7/Factory Tank | -7/Storage Commander-Mutant | -7/Recycling Construct | -5/Factory Commander-Construct | -5/Extension Commander-Construct | -5/Cetus Commander-Construct | -5/Archives Commander-Construct | -5/Hub_04(d) Scavenger-Construct | -4/Factory Construct | -4/Upper Caves Construct | -4/Upper Caves Construct | -4/Warlord Construct | -3/Proximity Caves Construct | -3/Research Construct | -3/Testing Construct | -2/Research Gunner | -2/Quarantine Gunner | -2/Protoforge Gunner | -1/Access Scavenger-Gunner | -1/Command Resources | -11 -10 -10 -8 -8 -7 -7 -7 -5 -5 -5 -5 -5 -4 -4 -4 -4 -3 -3 -3 -2 -2 -2 -1 -1 ----------- Run | Yrd Mat Sub Mat Gar Fac Sto Rec Fac Ext Cet Arc Hub Fac Upp Upp War Pro Res Tes Res Qua Frg Acc Com Matter Collected 11461 | 290 130 242 858 394 383 730 404 211 1136 308 525 189 288 90 . 147 99 165 290 417 526 2506 685 448 Remotely 125 | . . . . . . . . . . . . . . . . . . . . . . 20 105 . Salvage Created 19747 | 117 162 187 1734 703 397 1287 2646 631 1423 207 453 464 311 . . 39 . 106 290 524 1852 5155 796 263 Parts 877 | 7 13 10 84 54 16 44 138 18 53 8 27 18 18 . . . . 4 13 12 60 225 44 11 Haulers Intercepted 7 | . 1 . 4 . . . . . . . . . . . . . . . . 2 . . . . Recyclers Shooed 16 | . 2 . 1 . 1 2 7 . 1 . . . 1 . . . . . 1 . . . . . Parts Field Recycled . | . . . . . . . . . . . . . . . . . . . . . . . . . Retrieved Matter . | . . . . . . . . . . . . . . . . . . . . . . . . . Parts Self-Destructed 19 | . . 19 . . . . . . . . . . . . . . . . . . . . . . Prevented . | . . . . . . . . . . . . . . . . . . . . . . . . . Parts Restored 2 | . . . . . . . . . . . . . . . . . . . . . . 2 . . Faulty 2 | . . . . . . . . . . . . . . . . . . . . . . 2 . . Kills | -11 -10 -10 -8 -8 -7 -7 -7 -5 -5 -5 -5 -5 -4 -4 -4 -4 -3 -3 -3 -2 -2 -2 -1 -1 ------- Run | Yrd Mat Sub Mat Gar Fac Sto Rec Fac Ext Cet Arc Hub Fac Upp Upp War Pro Res Tes Res Qua Frg Acc Com Combat Hostiles Destroyed 242 | . 2 7 31 26 3 25 1 11 16 2 1 3 6 . . 1 2 2 3 4 15 61 18 2 Guns 73 | . . 2 16 15 1 15 1 3 14 2 1 1 1 . . . . . . . . 1 . . Cannons 43 | . . 2 1 . 2 3 . 3 2 . . 1 1 . . 1 . 1 3 2 3 11 5 2 AOE 72 | . 2 3 14 11 . 5 . 1 . . . . 4 . . . 2 . . . 3 15 12 . Classes Destroyed 26 | 2 3 1 6 3 1 1 . 2 . . . . . . . 1 1 . . 1 2 2 . . Worker 12 | . . . 2 . . 1 . 1 1 . . 3 1 . . . . . . . . 1 1 1 Builder 35 | . 1 . 2 . 1 . 23 . . . . . 2 . . . . . . . 2 2 2 . Tunneler 6 | 3 . . . . . . . . . . . . . . . . . . . . . . 3 . Hauler 7 | . 1 . 4 . . . . . . . . . . . . . . . . 2 . . . . Recycler 48 | 1 1 . 4 . 4 3 30 . 2 . . 1 . . . . . . 1 . . . 1 . Mechanic 3 | . . . . . . . . 1 . . . . . . . . . . . . . 2 . . Operator 10 | . . . 1 . . . . . . . 9 . . . . . . . . . . . . . Drone 4 | . . . . . . . . . . . . . . . . . 2 . . . . 2 . . Watcher 4 | . . . 1 . . . . . 1 . . . 1 . . . . . . . 1 . . . Swarmer 38 | . . . 5 13 . . . . . . . . 4 . . . . 1 . . . 6 9 . Grunt 74 | . 2 2 17 5 2 14 . 9 6 . . . . . . . . . . . 4 10 3 . Brawler 5 | . . . . 2 . 1 . . 1 . . . . . . . . . . . . 1 . . Duelist 4 | . . . 1 . . 1 . . . . . . . . . . . . . . . 1 1 . Protector 1 | . . . . . . 1 . . . . . . . . . . . . . . . . . . Researcher 3 | . . . . . . . . . . . . . . . . . . . . . 1 2 . . Sentry 46 | . . . 8 3 . 7 . . 7 . 1 3 1 . . . . 1 . 1 . 12 1 1 Specialist 1 | . . . . 1 . . . . . . . . . . . . . . . . . . . . Hunter 15 | . . . . 2 . . . 1 . . . . . . . . . . . 1 7 2 2 . Programmer 16 | . . . . . 1 1 . . 1 . . . 1 . . . . . 3 . 3 4 2 . Behemoth 3 | . . . . . . . . 1 1 . . . . . . . . . . . . . . 1 Cetus Guard 2 | . . . . . . . . . . 2 . . . . . . . . . . . . . . Hotshot 10 | . . . . . . . . . . . . . . . . . . . . . . 10 . . Decapitator 4 | . . . . . . . . . . . . . . . . . . . . . . 4 . . Immortal 5 | . . . . . . . . . . . . . . . . . . . . . . 5 . . Striker 2 | . . . . . . . . . . . . . . . . 1 . . . 1 . . . . Executioner 1 | . . . . . . . . . . . . . . . . . . . . 1 . . . . Fortress 1 | . . . . . . . . . . . . . . . . . . . . . 1 . . . V-Series 4 | . . . . . . . . . . . . . . . . . . . . . . 4 . . Subdweller 6 | . . 5 . . . . 1 . . . . . . . . . . . . . . . . . Thug 2 | . . . . . . . . . . 1 1 . . . . . . . . . . . . . Guerrilla 1 | . . . . . . . . . 1 . . . . . . . . . . . . . . . Commander 1 | . . . . . . . . . . . . . . . . . . . . . . . . 1 Best Kill Streak 19 | 4 2 3 8 9 3 10 13 7 5 2 3 4 5 . . 1 2 1 3 2 7 19 8 1 Combat Bots Only 17 | . 2 3 6 9 1 8 1 6 4 2 1 2 4 . . 1 2 1 3 2 4 17 6 1 Max Kills in Single Turn 5 | 1 2 2 4 5 1 3 1 1 2 1 2 2 5 . . 1 1 1 1 1 2 2 5 1 Gunslinging 1 | . . 1 1 . . . . . . . . . . . . . . . . . . . . . Exploded 5 | . 2 1 3 5 . 3 . 1 . . . . 4 . . . 1 . . . 1 2 5 . Melee . | . . . . . . . . . . . . . . . . . . . . . . . . . Uniques/NPCs Destroyed . | . . . . . . . . . . . . . . . . . . . . . . . . . Combat | -11 -10 -10 -8 -8 -7 -7 -7 -5 -5 -5 -5 -5 -4 -4 -4 -4 -3 -3 -3 -2 -2 -2 -1 -1 -------- Run | Yrd Mat Sub Mat Gar Fac Sto Rec Fac Ext Cet Arc Hub Fac Upp Upp War Pro Res Tes Res Qua Frg Acc Com Hostile Shots Fired 1762 | . 1 30 200 83 22 327 . 121 119 21 6 45 11 . 3 5 3 38 38 32 88 255 202 112 Missed 611 | . . 13 48 26 6 119 . 35 44 6 1 13 5 . 1 3 1 18 16 12 30 96 86 32 Hits 1151 | . 1 17 152 57 16 208 . 86 75 15 5 32 6 . 2 2 2 20 22 20 58 159 116 80 Melee 26 | . . . 1 4 . 5 . . . . . . . . . . . . . . . 16 . . Projectile 1125 | . 1 17 151 53 16 203 . 86 75 15 5 32 6 . 2 2 2 20 22 20 58 143 116 80 AOE 10 | . . 7 . . . . . . . . . . . . . . . . . . . 1 2 . Critical Strikes 57 | . . 1 3 2 3 2 . 3 4 4 1 3 . . . . . 1 2 . 4 14 4 6 Part Disruptions 1 | . . . . . . . . . . . . . . . . . . . . . . . . 1 Damage Taken 18687 | . 14 556 2166 797 233 2368 11 1403 1810 465 136 908 71 . . 122 22 254 264 407 909 2985 1908 878 Core 1476 | . . 148 159 84 . 274 . 111 100 89 . 47 . . . 20 . . 11 67 67 151 129 19 Absorbed by Shields 4733 | . . . . . . . . . 238 25 . . 76 . . 103 24 262 249 345 461 1816 693 441 Ignored by Resistances 842 | . . 10 56 3 . . . . 35 . . . . . . . . . . . . 738 . . Regen/Repaired (Parts) 5988 | . . . . . . . 5 223 745 170 27 25 452 . . 114 . 62 18 582 459 1148 1529 429 Core Remaining (%) 74 | 100 . 40 . 55 . . 60 . . . . 65 . . . . 98 . 99 . . 75 . . Volleys Fired 991 | 20 25 19 99 74 29 66 12 44 54 14 43 16 23 5 . 2 33 40 44 29 46 187 30 37 Largest 3 | 2 2 3 3 2 3 3 2 2 3 3 3 3 3 1 . 2 1 2 3 2 2 2 3 3 Hottest 280 | 70 70 110 123 123 126 176 217 251 114 92 95 95 95 27 . 120 43 135 216 218 233 280 232 232 Shots Fired 1597 | 38 38 26 188 114 66 184 24 52 158 42 84 38 35 5 . 3 32 44 52 31 49 202 43 49 Gun 799 | 38 34 9 164 92 38 153 9 17 124 34 50 22 12 . . . . . . . 2 1 . . Cannon 659 | . . 7 3 2 27 29 15 31 33 8 34 16 23 5 . 3 30 44 52 31 36 151 30 49 Launcher 139 | . 4 10 21 20 1 2 . 4 1 . . . . . . . 2 . . . 11 50 13 . Special . | . . . . . . . . . . . . . . . . . . . . . . . . . Kinetic 786 | 20 21 6 119 35 47 107 10 17 157 42 84 38 35 5 . . . . . . 2 9 19 13 Thermal 524 | 18 13 10 48 43 18 75 9 10 . . . . . . . 2 30 40 48 9 36 68 11 36 Explosive 72 | . 4 10 16 15 1 2 . 4 1 . . . . . . . 2 . . . . 6 11 . Electromagnetic 201 | . . . 5 21 . . 5 21 . . . . . . . . . 4 3 19 11 110 2 . Entropic 14 | . . . . . . . . . . . . . . . . 1 . . 1 3 . 9 . . Robot Hit Streak 27 | 8 13 11 27 15 8 26 4 8 18 24 5 14 5 . . 5 . 7 10 11 8 12 4 8 Robot Miss Streak 14 | 2 3 1 6 4 4 6 2 2 3 2 4 1 2 . . . . 3 1 1 3 14 4 4 Penetration Max 2 | . . . . . . 1 . . 1 1 1 1 1 . . . . . . . . 2 1 . Secondary Targets 7 | . . 1 2 . . 2 . 1 . 1 . . . . . . . . . . . . . . Max Gunslinging Chain 1 | . . 1 1 . . 1 . 1 . 1 . . . . . . . . . . . . . . Capacitor 5 | . . . . . . . . . . . . . . . . . . . . 5 . . . . Shots Hit Robots 926 | 30 26 17 132 46 33 131 73 35 110 29 48 30 14 . . 1 . 7 11 17 16 83 19 18 Core Hits 712 | 7 11 16 89 43 14 69 39 25 50 17 19 13 18 . . 1 2 2 6 7 42 167 48 7 Critical Kills 20 | . . 1 . . . . . . 5 . . 1 . . . . . . . 1 . 8 3 1 Critical Parts Destroyed 23 | . . . . . . 3 . 1 5 . . 3 . . . . . . . . . 10 1 . Critical Strikes 68 | 1 . 3 2 1 3 6 1 1 12 1 . 5 . . . . . 1 . 4 . 20 6 1 Burn 9 | 1 . 2 1 1 2 2 . . . . . . . . . . . . . . . . . . Meltdown 5 | . . . . . . . . . . . . 1 . . . . . . . 1 . 3 . . Destroy 42 | . . 1 1 . . 3 . 1 10 1 . 4 . . . . . . . . . 15 5 1 Blast 5 | . . . . . 1 1 . . 2 . . . . . . . . . . . . . 1 . Corrupt 4 | . . . . . . . . . . . . . . . . . . 1 . 3 . . . . Sever 1 | . . . . . . . 1 . . . . . . . . . . . . . . . . . Sunder 2 | . . . . . . . . . . . . . . . . . . . . . . 2 . . Melee Attacks 86 | . . . . . . . 84 1 . . . . . . . . . . . . 1 . . . Kinetic 1 | . . . . . . . . . . . . . . . . . . . . . 1 . . . Impact . | . . . . . . . . . . . . . . . . . . . . . . . . . Slashing 85 | . . . . . . . 84 1 . . . . . . . . . . . . . . . . Piercing . | . . . . . . . . . . . . . . . . . . . . . . . . . Sneak Attacks 48 | . . . . . . . 48 . . . . . . . . . . . . . . . . . Combat Hostiles . | . . . . . . . . . . . . . . . . . . . . . . . . . Follow-up Attacks . | . . . . . . . . . . . . . . . . . . . . . . . . . Damage Inflicted 42682 | 293 409 843 3943 1499 761 3615 4247 1886 3393 1069 1746 1364 1014 . 3 31 155 417 469 670 2167 9005 2907 776 Guns 12099 | 293 203 122 1973 762 416 2442 44 311 2642 914 801 796 323 . . . . . . . 33 24 . . Cannons 11643 | . . 36 36 17 316 352 227 883 677 155 945 546 243 . . 31 . 340 469 670 466 3793 665 776 Explosions 14570 | . 185 685 1889 720 18 813 . 657 42 . . . 347 . . . 155 . . . 1668 5188 2203 . Melee 3905 | . . . . . . . 3905 . . . . . . . . . . . . . . . . . Ramming 465 | . 21 . 45 . 11 8 71 35 32 . . 22 101 . 3 . . 77 . . . . 39 . Kinetic 13230 | 120 128 96 1375 110 524 1529 78 311 3319 1069 1746 1342 566 . . . . . . . 33 223 259 402 Thermal 7291 | 173 75 62 714 481 208 1265 44 . . . . . 93 . . 31 . 224 390 113 466 2172 406 374 Explosive 7630 | . 185 685 1503 657 18 813 . 657 42 . . . . . . . 155 . . . . 917 1998 . Electromagnetic 9659 | . . . 306 251 . . 149 883 . . . . 254 . . . . 116 79 557 1668 5191 205 . Impact . | . . . . . . . . . . . . . . . . . . . . . . . . . Slashing 3905 | . . . . . . . 3905 . . . . . . . . . . . . . . . . . Piercing . | . . . . . . . . . . . . . . . . . . . . . . . . . Entropic 502 | . . . . . . . . . . . . . . . . . . . . . . 502 . . Highest Corruption 21 | . . . . . 3 3 6 . 9 9 9 3 . . . 7 3 3 7 . 8 13 13 21 Average Corruption 5 | . . . . . 2 3 3 . 9 9 7 2 . . . 2 3 2 4 . 5 8 11 16 Corruption Purged 30 | . . . . . . . . . . . 11 . . . . 7 . . . . . 12 . . Corruption Blocked . | . . . . . . . . . . . . . . . . . . . . . . . . . Effects 391 | . . . . . 1 11 142 . 48 26 26 . . . . 2 14 3 13 . 15 47 19 24 Message Errors 91 | . . . . . . 2 31 . 11 5 8 . . . . . 4 1 3 . 3 13 6 4 Matter Fused 85 | . . . . . . 2 33 . 13 8 6 . . . . 2 2 2 1 . 2 4 2 8 Heat Flow Errors 52 | . . . . . . 2 23 . 6 1 4 . . . . . 2 . 2 . 3 4 3 2 Energy Discharges 46 | . . . . . 1 1 17 . 4 3 3 . . . . . 4 . 2 . 3 5 1 2 Parts Rejected 5 | . . . . . . 1 . . 2 . . . . . . . . . . . . 2 . . Parts Fused 3 | . . . . . . . 1 . 2 . . . . . . . . . . . . . . . Data Loss (minor) 46 | . . . . . . 1 18 . 3 3 2 . . . . . 1 . 3 . 2 8 2 3 Data Loss (major) 17 | . . . . . . . 5 . 2 1 . . . . . . . . 1 . 1 3 2 2 Misfires 20 | . . . . . . 2 10 . 2 2 . . . . . . . . . . 1 2 1 . Alerts 11 | . . . . . . . 4 . 2 1 . . . . . . . . . . . 2 2 . Misdirections 4 | . . . . . . . . . . . . . . . . . . . . . . 1 . 3 Weapon Failures 11 | . . . . . . . . . 1 2 3 . . . . . 1 . 1 . . 3 . . Overload Shots . | . . . . . . . . . . . . . . . . . . . . . . . . . Overflow Damage 1516 | . . . 71 12 12 13 808 99 31 . 150 9 34 . . . . 10 . 22 2 115 128 . Projectiles 432 | . . . . . 12 5 1 1 31 . 150 9 4 . . . . 10 . 22 . 93 94 . Explosions 245 | . . . 69 12 . 8 . 98 . . . . . . . . . . . . 2 22 34 . Melee 839 | . . . 2 . . . 807 . . . . . 30 . . . . . . . . . . . Knockbacks 27 | . 1 . . . 1 2 1 . 4 . 10 1 1 . . . . . . . . 4 2 . Impact 1 | . 1 . . . . . . . . . . . . . . . . . . . . . . . Kinetic 24 | . . . . . 1 2 1 . 4 . 9 1 . . . . . . . . . 4 2 . Secondary 2 | . . . . . . . . . . . 1 . 1 . . . . . . . . . . . Self-Inflicted Damage 812 | . . . 3 92 5 . 11 41 . . . . 10 . . . . 8 . . 13 556 73 . Shots 43 | . . . 1 4 . . . 1 . . . . 1 . . . . . . . 1 34 1 . Rammed 21 | . 4 . 5 . 1 1 4 1 1 . . . . . . . . 3 . . . . 1 . Targets Rammed 29 | . 4 . 5 . 1 1 6 1 1 . . 2 3 . 1 . . 3 . . . . 1 . Kicked 5 | . . . . . . . . . . . . 2 2 . 1 . . . . . . . . . Crushed 3 | . . . . . . . 2 . . . . . 1 . . . . . . . . . . . Highest Temperature 448 | 260 70 . 254 78 29 338 444 448 402 240 249 1 296 54 . 85 210 364 434 325 172 225 184 64 Average Temperature 94 | 136 30 . 69 26 14 100 118 178 85 124 111 1 77 27 . 43 35 117 100 96 87 52 70 34 Received Heat Transfer 3726 | . 9 60 1053 108 81 942 . 513 340 27 18 144 12 . . 5 . 17 . 8 25 303 53 8 Effects 16 | . . . . . . 1 1 6 2 . . . 1 . . . . . 1 2 . 2 . . Shutdowns 2 | . . . . . . . . 1 1 . . . . . . . . . . . . . . . Energy Bleed 4 | . . . . . . 1 1 . 1 . . . . . . . . . 1 . . . . . Interference 7 | . . . . . . . . 2 . . . . 1 . . . . . . 2 . 2 . . Matter Decay 1 | . . . . . . . . 1 . . . . . . . . . . . . . . . . Short Circuit 1 | . . . . . . . . 1 . . . . . . . . . . . . . . . . Damage (minor) 1 | . . . . . . . . 1 . . . . . . . . . . . . . . . . Siege Activations . | . . . . . . . . . . . . . . . . . . . . . . . . . Martial Activations . | . . . . . . . . . . . . . . . . . . . . . . . . . Shielding Activations . | . . . . . . . . . . . . . . . . . . . . . . . . . Robots Disrupted 5 | . . . . . . . . . . . . . . . . . . . . . . 5 . . Combat Hostiles 5 | . . . . . . . . . . . . . . . . . . . . . . 5 . . Robots Corrupted 50 | . . . 1 . . . . 4 . . 1 . . . . . . 1 . 2 8 32 1 . Combat Hostiles 46 | . . . . . . . . 4 . . . . . . . . . 1 . 1 8 31 1 . Parts Fried 102 | . . . 2 1 . . . 7 . . 3 . 6 . . . . 1 2 6 21 51 2 . Impact Corruptions 4 | . . . 1 . . . . . . . 2 . 1 . . . . . . . . . . . Robots Melted 7 | . . . . . . 2 . . . . . 1 . . . . . . . 1 . 3 . . Combat Hostiles 7 | . . . . . . 2 . . . . . 1 . . . . . . . 1 . 3 . . Parts Melted 22 | 1 . . 5 4 1 6 . . . . . . 1 . . . . . . . . 4 . . Heat Transferred 10289 | 592 222 296 1436 1197 555 2934 111 . . . . . 150 . . 50 . 185 222 111 370 1356 250 252 Parts Sabotaged . | . . . . . . . . . . . . . . . . . . . . . . . . . Parts Stolen . | . . . . . . . . . . . . . . . . . . . . . . . . . Parts Stripped 18 | . . . . . . . . . . . . . . . . . . . . . 18 . . . Power Chain Reactions 8 | . . . 2 1 . . . . . . . . 1 . . . . . . . . 4 . . Alert | -11 -10 -10 -8 -8 -7 -7 -7 -5 -5 -5 -5 -5 -4 -4 -4 -4 -3 -3 -3 -2 -2 -2 -1 -1 ------- Run | Yrd Mat Sub Mat Gar Fac Sto Rec Fac Ext Cet Arc Hub Fac Upp Upp War Pro Res Tes Res Qua Frg Acc Com Maximum Alert Level 5 | . . . 2 5 3 3 1 1 1 1 . 2 . . . . . 1 . . 1 4 5 3 Low Security (%) 64 | 100 100 . 56 . . . 96 22 76 81 100 53 100 . . . . 96 100 100 40 9 . . Level 1 10 | . . . 19 . . 23 3 77 23 18 . 46 . . . . . 3 . . 59 13 . . Level 2 8 | . . . 23 42 . 58 . . . . . . . . . . . . . . . 13 . . Level 3 7 | . . . . 13 100 17 . . . . . . . . . . . . . . . 8 38 100 Level 4 7 | . . . . 34 . . . . . . . . . . . . . . . . . 55 55 . Level 5 . | . . . . 9 . . . . . . . . . . . . . . . . . . 5 . High Security . | . . . . . . . . . . . . . . . . . . . . . . . . . Max Security . | . . . . . . . . . . . . . . . . . . . . . . . . . Peak Influence 1792 | 10 55 . 693 1792 940 775 289 342 336 250 126 410 192 . . . . 205 121 122 364 1587 1610 992 Initial 953 | . . . 11 418 940 373 289 337 37 174 37 . 142 . . . . 159 16 53 . 155 947 953 Average 326 | 1 7 . 252 969 863 515 110 245 108 154 34 202 78 . . . . 164 77 38 212 982 1270 953 Influence Increases 12454 | 20 117 50 1269 1404 167 748 360 599 1025 326 363 700 365 . 15 20 25 483 333 284 651 1954 934 242 Destroy 0b10 Robot/C 5240 | . 40 40 620 520 60 480 . 220 540 140 80 200 160 . . 20 . 40 60 80 320 1220 360 40 Destroy 0b10 Robot/NC 690 | 20 15 . 70 . 25 25 270 10 25 10 45 35 20 . . . 10 . 5 10 15 40 35 5 Destroy Leader 876 | . 12 10 170 30 10 130 . 30 54 . . 52 42 . . . . 20 10 34 42 150 60 20 Allied During Kill 819 | . . . . . . . . . 234 150 125 274 36 . . . . . . . . . . . Successful Hack 520 | . 21 . 37 14 30 . 18 . 33 . . . . . . . . 69 65 . 148 5 53 27 Select Force Hacks 80 | . . . . . . . 30 . . . . 50 . . . . . . . . . . . . Disable Machine 780 | . . . 45 60 30 30 15 30 30 . 45 45 45 . . . . 15 105 30 45 165 30 15 Anti-Garrison Action 800 | . . . . 650 . . . . . . . . . . . . . . . . . 150 . . Destroy Structure 1319 | . 29 . 72 100 12 38 27 44 94 26 68 44 62 . . . . 54 58 25 51 179 216 120 Advance Influence 400 | . . . . . . . . 250 . . . . . . . . . 150 . . . . . . Partial Spotted 60 | . . . . . . . . . . . . . . . . . . . 30 15 . . 15 . Lose Combat Pursuer 870 | . . . 255 30 . 45 . 15 15 . . . . . 15 . 15 135 . 90 30 45 165 15 Influence Decreases 11527 | 20 117 28 647 256 1138 826 894 730 791 544 457 410 632 23 15 20 10 468 268 379 375 651 1022 806 Entered New Map 3859 | . . . 11 226 852 448 454 122 41 138 57 . 148 9 . . . 6 14 42 . 121 632 538 Time Decay 5999 | 20 117 28 516 . 286 278 430 368 454 286 340 160 334 14 15 10 10 302 254 337 292 530 380 238 Lost Part 360 | . . . 120 30 . 100 10 20 30 . . 10 . . . 10 . . . . . . . 30 Lost Ally 676 | . . . . . . . . 70 166 120 60 240 . . . . . 10 . . . . 10 . Purge Threat 633 | . . . . . . . . 150 100 . . . 150 . . . . 150 . . 83 . . . Squads Dispatched 69 | . 2 . 5 . 1 7 . 3 2 . . 2 2 . . . . 5 3 . 5 17 10 5 Investigation 13 | . . . . . . . . 1 . . . 2 . . . . . 3 1 . 1 2 2 1 Extermination 18 | . . . . . 1 2 . 2 . . . . 2 . . . . . 2 . 2 3 2 2 Reinforcement 20 | . 2 . 5 . . 2 . . 2 . . . . . . . . 2 . . 2 2 2 1 Assault 13 | . . . . . . 1 . . . . . . . . . . . . . . . 7 4 1 Garrison 5 | . . . . . . 2 . . . . . . . . . . . . . . . 3 . . Intercept . | . . . . . . . . . . . . . . . . . . . . . . . . . Searches Triggered . | . . . . . . . . . . . . . . . . . . . . . . . . . Construction Impeded 3 | . . . 1 . . . . . . . . . . . . . . . . . . 1 1 . Haulers Reinforced 2 | . . . . . . 1 . . . . . . . . . . . 1 . . . . . . Active Scanning Responses . | . . . . . . . . . . . . . . . . . . . . . . . . . Cargo Convoy Interrupts 1 | . . . . . . . . 1 . . . . . . . . . . . . . . . . Stealth | -11 -10 -10 -8 -8 -7 -7 -7 -5 -5 -5 -5 -5 -4 -4 -4 -4 -3 -3 -3 -2 -2 -2 -1 -1 --------- Run | Yrd Mat Sub Mat Gar Fac Sto Rec Fac Ext Cet Arc Hub Fac Upp Upp War Pro Res Tes Res Qua Frg Acc Com Distress Signals 43 | . 1 . 6 . . 2 4 . 2 2 . . 3 . . . . 5 . 12 1 1 1 3 Communications Jammed 29 | . . . . . . . . . . . . . 1 . . . 1 13 . 8 2 4 . . Distress Signals 28 | . . . . . . . . . . . . . 1 . . . . 13 . 8 2 4 . . Times Spotted 509 | . 7 8 68 27 4 35 . 14 35 10 29 15 12 . 1 13 3 32 11 18 28 84 28 27 Peak Tracking Total 11 | . 3 3 9 8 1 9 . 4 5 5 2 8 5 . 1 4 2 11 4 5 6 10 11 9 Tactical Retreats 43 | . . . 16 2 . 1 . 1 1 . . . . . 1 . 1 6 . 5 1 3 4 1 Traps | -11 -10 -10 -8 -8 -7 -7 -7 -5 -5 -5 -5 -5 -4 -4 -4 -4 -3 -3 -3 -2 -2 -2 -1 -1 ------- Run | Yrd Mat Sub Mat Gar Fac Sto Rec Fac Ext Cet Arc Hub Fac Upp Upp War Pro Res Tes Res Qua Frg Acc Com Traps Triggered 53 | . 4 . 3 7 . . . . 5 . . . 1 . . . . . 2 . 2 22 6 1 Indirectly 13 | . . . . . . . . . . . . . . . . . . . . . . 13 . . Trap Hack Attempts . | . . . . . . . . . . . . . . . . . . . . . . . . . Triggered . | . . . . . . . . . . . . . . . . . . . . . . . . . Disarmed . | . . . . . . . . . . . . . . . . . . . . . . . . . Reprogrammed . | . . . . . . . . . . . . . . . . . . . . . . . . . Reused . | . . . . . . . . . . . . . . . . . . . . . . . . . Traps Extracted . | . . . . . . . . . . . . . . . . . . . . . . . . . Installed . | . . . . . . . . . . . . . . . . . . . . . . . . . Triggered . | . . . . . . . . . . . . . . . . . . . . . . . . . Machines | -11 -10 -10 -8 -8 -7 -7 -7 -5 -5 -5 -5 -5 -4 -4 -4 -4 -3 -3 -3 -2 -2 -2 -1 -1 ---------- Run | Yrd Mat Sub Mat Gar Fac Sto Rec Fac Ext Cet Arc Hub Fac Upp Upp War Pro Res Tes Res Qua Frg Acc Com Machines Disabled 65 | . . . 3 9 2 2 1 2 2 . 3 3 3 . . 1 . 1 7 3 3 17 2 1 Max in Single Turn 2 | . . . 2 1 1 1 1 1 1 . 1 1 2 . . 1 . 1 2 2 1 2 1 1 Garrison Access 7 | . . . . . 1 1 . . . . . 1 . . . . . . 1 1 . 1 1 . Garrison Relay 3 | . . . . 3 . . . . . . . . . . . . . . . . . . . . Network Hub 1 | . . . . . . . . . . . . 1 . . . . . . . . . . . . Machines Repaired . | . . . . . . . . . . . . . . . . . . . . . . . . . Machines Dismantled . | . . . . . . . . . . . . . . . . . . . . . . . . . Machines Sabotaged 1 | . . . . . . . . . . . . 1 . . . . . . . . . . . . Overloaded Fab Kills . | . . . . . . . . . . . . . . . . . . . . . . . . . Hacking | -11 -10 -10 -8 -8 -7 -7 -7 -5 -5 -5 -5 -5 -4 -4 -4 -4 -3 -3 -3 -2 -2 -2 -1 -1 --------- Run | Yrd Mat Sub Mat Gar Fac Sto Rec Fac Ext Cet Arc Hub Fac Upp Upp War Pro Res Tes Res Qua Frg Acc Com Machines Accessed 113 | . 4 . 10 4 3 6 8 8 15 1 . 3 2 1 . 4 . 8 9 2 10 6 8 1 Terminals 88 | . 4 . 8 4 2 5 5 6 15 1 . 2 1 . . . . 7 7 . 9 5 6 1 Fabricators 1 | . . . . . . . . 1 . . . . . . . . . . . . . . . . Repair Stations . | . . . . . . . . . . . . . . . . . . . . . . . . . Recycling Units 5 | . . . . . . . 2 1 . . . . . . . . . . . 1 . . 1 . Scanalyzers 5 | . . . 1 . . . . . . . . . 1 . . . . 1 1 . 1 . . . Garrison Access 8 | . . . 1 . 1 1 . . . . . 1 . . . . . . 1 1 . 1 1 . Total Hacks 270 | . 10 . 26 8 4 10 19 16 25 1 . 5 6 1 . 6 . 33 26 3 32 12 25 2 Successful 109 | . 6 . 12 3 3 2 6 4 13 . . 3 3 1 . 6 . 10 15 1 12 2 6 1 Failed 159 | . 4 . 13 5 1 8 13 12 12 1 . 2 3 . . . . 22 11 2 20 10 19 1 Catastrophic 47 | . . . 3 1 . 3 6 4 6 1 . . 1 . . . . 5 3 1 7 2 4 . Database Lockouts 2 | . . . 1 . . . . . . . . . . . . . . 1 . . . . . . Manual 146 | . 10 . 22 3 2 7 17 6 9 1 . 3 . . . . . 14 22 1 16 5 6 2 Terminals 226 | . 10 . 23 8 3 8 14 13 25 1 . 3 5 . . . . 28 24 . 30 9 20 2 Fabricators 2 | . . . . . . . . 2 . . . . . . . . . . . . . . . . Repair Stations . | . . . . . . . . . . . . . . . . . . . . . . . . . Recycling Units 8 | . . . . . . . 3 1 . . . . . . . . . . . 2 . . 2 . Scanalyzers 11 | . . . 2 . . . . . . . . . 1 . . . . 5 1 . 2 . . . Garrison Access 14 | . . . 1 . 1 2 . . . . . 2 . . . . . . 1 1 . 3 3 . Terminal Hacks 59 | . . . 3 3 1 1 2 3 11 . . . 2 1 . 6 . 3 10 . 8 2 3 . Record 5 | . . . . . . . . . . . . . . . . 5 . . . . . . . . Robot Schematic 1 | . . . 1 . . . . . . . . . . . . . . . . . . . . . Open Door 16 | . . . . . . 1 . 1 9 . . . . 1 . 1 . . . . . . 3 . Branch Access Points 4 | . . . 1 . 1 . . . . . . . 1 . . . . 1 . . . . . . Emergency Access Points 1 | . . . . 1 . . . . . . . . . . . . . . . . . . . . Machine Index 1 | . . . . . . . . . . . . . . . . . . . 1 . . . . . Terminal Index 3 | . . . . . . . . . . . . . . . . . . 1 1 . 1 . . . Garrison Index 1 | . . . . . . . . . . . . . . . . . . . 1 . . . . . Alert Level 3 | . . . . . . . . 1 . . . . . . . . . . 1 . 1 . . . Unreport Threat 5 | . . . . . . . . 1 1 . . . 1 . . . . 1 . . 1 . . . Locate Traps 2 | . . . . . . . . . . . . . . . . . . . 1 . 1 . . . Maintenance Status 1 | . . . . . . . . . . . . . . . . . . . 1 . . . . . Patrol Status 2 | . . . . . . . . . . . . . . . . . . . 1 . 1 . . . Recall Reinforcements 1 | . . . . . . . . . 1 . . . . . . . . . . . . . . . Zone Layout 8 | . . . 1 . . . . . . . . . . . . . . . 3 . 3 1 . . Patrol Navigation 1 | . . . . 1 . . . . . . . . . . . . . . . . . . . . Security Stations 1 | . . . . 1 . . . . . . . . . . . . . . . . . . . . Proto ID Catalog 1 | . . . . . . . . . . . . . . . . . . . . . . 1 . . Release Object 2 | . . . . . . . 2 . . . . . . . . . . . . . . . . . Fabricator Hacks . | . . . . . . . . . . . . . . . . . . . . . . . . . Repair Station Hacks . | . . . . . . . . . . . . . . . . . . . . . . . . . Recycling Unit Hacks 1 | . . . . . . . . . . . . . . . . . . . . . . . 1 . Retrieve Components 1 | . . . . . . . . . . . . . . . . . . . . . . . 1 . Scanalyzer 9 | . . . 1 . . . . . . . . . 1 . . . . 4 1 . 2 . . . Insert Component 5 | . . . . . . . . . . . . . . . . . . 3 1 . 1 . . . Retrieve Study 4 | . . . 1 . . . . . . . . . 1 . . . . 1 . . 1 . . . Garrison Access Hacks 6 | . . . 1 . 1 1 . . . . . 1 . . . . . . 1 1 . . . . Unlock Access 1 | . . . 1 . . . . . . . . . . . . . . . . . . . . . Seal Access 5 | . . . . . 1 1 . . . . . 1 . . . . . . 1 1 . . . . Unauthorized Hacks 34 | . 6 . 7 . 1 . 4 1 2 . . 2 . . . . . 3 3 . 2 . 2 1 Terminals 33 | . 6 . 7 . 1 . 3 1 2 . . 2 . . . . . 3 3 . 2 . 2 1 Track 1 | . . . . . . . . . . . . . . . . . . . 1 . . . . . Assimilate 2 | . . . . . . . . . . . . . . . . . . 1 . . . . 1 . Botnet 15 | . 2 . 2 . 1 . . 1 2 . . . . . . . . 2 1 . 2 . 1 1 Operators 1 | . . . . . . . . . . . . . . . . . . . 1 . . . . . Skim 12 | . 4 . 5 . . . 3 . . . . . . . . . . . . . . . . . Sabotage 2 | . . . . . . . . . . . . 2 . . . . . . . . . . . . Fabricators . | . . . . . . . . . . . . . . . . . . . . . . . . . Repair Stations . | . . . . . . . . . . . . . . . . . . . . . . . . . Recycling Units 1 | . . . . . . . 1 . . . . . . . . . . . . . . . . . Tunnel 1 | . . . . . . . 1 . . . . . . . . . . . . . . . . . Scanalyzers . | . . . . . . . . . . . . . . . . . . . . . . . . . Garrison Access . | . . . . . . . . . . . . . . . . . . . . . . . . . Data Cores Recovered . | . . . . . . . . . . . . . . . . . . . . . . . . . Used . | . . . . . . . . . . . . . . . . . . . . . . . . . Hacking Detections 85 | . 4 . 7 4 2 5 6 8 10 1 . 2 1 . . . . 7 6 1 9 4 7 1 Full Trace Events 10 | . . . . . . . 4 1 . . . . . . . . . 1 1 . 1 1 1 . Feedback Events 2 | . . . . . . . 1 . . . . . . . . . . . . . . . 1 . Corruption 2 | . . . . . . . 1 . . . . . . . . . . . . . . . 1 . Feedback Blocked . | . . . . . . . . . . . . . . . . . . . . . . . . . Robot Schematics Acquired 4 | . . . 1 . . . . . . . . . . . . . . . . . . 3 . . Robots Built . | . . . . . . . . . . . . . . . . . . . . . . . . . Authchips . | . . . . . . . . . . . . . . . . . . . . . . . . . Time . | . . . . . . . . . . . . . . . . . . . . . . . . . Total Robot Build Rating . | . . . . . . . . . . . . . . . . . . . . . . . . . Part Schematics Acquired 2 | . . . . . . . . . . . . . . . . . . . . . . 2 . . Parts Built . | . . . . . . . . . . . . . . . . . . . . . . . . . Authchips . | . . . . . . . . . . . . . . . . . . . . . . . . . Time . | . . . . . . . . . . . . . . . . . . . . . . . . . Total Part Build Rating . | . . . . . . . . . . . . . . . . . . . . . . . . . Part Studies Acquired 4 | . . . 1 . . . . . . . . . 1 . . . . 1 . . 1 . . . Parts Repaired . | . . . . . . . . . . . . . . . . . . . . . . . . . Time . | . . . . . . . . . . . . . . . . . . . . . . . . . Parts Recycled . | . . . . . . . . . . . . . . . . . . . . . . . . . Recycled Matter . | . . . . . . . . . . . . . . . . . . . . . . . . . Retrieved Matter . | . . . . . . . . . . . . . . . . . . . . . . . . . Retrieved Components 3 | . . . . . . . . . . . . . . . . . . . . . . . 3 . Parts Scanalyzed . | . . . . . . . . . . . . . . . . . . . . . . . . . Part Schematics Acquired . | . . . . . . . . . . . . . . . . . . . . . . . . . Parts Damaged . | . . . . . . . . . . . . . . . . . . . . . . . . . Bothacking | -11 -10 -10 -8 -8 -7 -7 -7 -5 -5 -5 -5 -5 -4 -4 -4 -4 -3 -3 -3 -2 -2 -2 -1 -1 ------------ Run | Yrd Mat Sub Mat Gar Fac Sto Rec Fac Ext Cet Arc Hub Fac Upp Upp War Pro Res Tes Res Qua Frg Acc Com Used RIF Installer . | . . . . . . . . . . . . . . . . . . . . . . . . . Robots Hacked . | . . . . . . . . . . . . . . . . . . . . . . . . . Non-combat . | . . . . . . . . . . . . . . . . . . . . . . . . . Combat . | . . . . . . . . . . . . . . . . . . . . . . . . . Robot Hacks Applied . | . . . . . . . . . . . . . . . . . . . . . . . . . Relay Couplers Released 12 | . . . . 9 . . . . . . . . . . . . . . . . . . 3 . Machine Destruction 12 | . . . . 9 . . . . . . . . . . . . . . . . . . 3 . Fabnet Peak Effective % . | . . . . . . . . . . . . . . . . . . . . . . . . . Robots Rewired 28 | . . . . . . . 5 . 23 . . . . . . . . . . . . . . . Allies Hacked . | . . . . . . . . . . . . . . . . . . . . . . . . . Hacks Repelled . | . . . . . . . . . . . . . . . . . . . . . . . . . Allies | -11 -10 -10 -8 -8 -7 -7 -7 -5 -5 -5 -5 -5 -4 -4 -4 -4 -3 -3 -3 -2 -2 -2 -1 -1 -------- Run | Yrd Mat Sub Mat Gar Fac Sto Rec Fac Ext Cet Arc Hub Fac Upp Upp War Pro Res Tes Res Qua Frg Acc Com Total Allies 47 | . . . . . . . 5 . 35 5 . . . . . . . 1 . . . . 1 . Largest Group 23 | . . . . . . . 5 5 23 23 19 14 1 . . . . 1 . . . . 1 . Highest-Rated Group 998 | . . . . . . . 62 62 782 998 998 657 96 . . . . 26 . . . . 45 . Highest-Rated Ally 159 | . . . . . . . 16 16 159 159 153 96 96 . . . . 26 . . . . 45 . Initial Warlord ECA Mod 8 | . . . . . 8 8 8 6 6 6 6 6 5 5 5 5 4 4 4 3 3 3 2 2 Total Orders 8 | . . . . . . . 2 . . . 2 4 . . . . . . . . . . . . STAY 4 | . . . . . . . 1 . . . 1 2 . . . . . . . . . . . . FOLLOW 4 | . . . . . . . 1 . . . 1 2 . . . . . . . . . . . . Ally Attacks 262 | . . . . . . . . 5 76 70 50 55 6 . . . . . . . . . . . Total Damage 6498 | . . . . . . . . 35 2048 1516 1084 1465 350 . . . . . . . . . . . Kills 38 | . . . . . . . . . 13 9 3 11 2 . . . . . . . . . . . Allies Corrupted 3 | . . . . . . . . . . . . 1 1 . . . . 1 . . . . . . Allies Melted 1 | . . . . . . . . . . . . . . . . . . . . 1 . . . . Intel | -11 -10 -10 -8 -8 -7 -7 -7 -5 -5 -5 -5 -5 -4 -4 -4 -4 -3 -3 -3 -2 -2 -2 -1 -1 ------- Run | Yrd Mat Sub Mat Gar Fac Sto Rec Fac Ext Cet Arc Hub Fac Upp Upp War Pro Res Tes Res Qua Frg Acc Com Active Infowar (turns) 12597 | 1 726 1564 109 . . . . 420 98 . . . 845 853 543 948 534 663 523 1507 675 1191 893 504 Optics 1796 | . . . . . . . . . . . . . . . . . . . . 470 675 651 . . Sensors 6550 | . . . . . . . . . . . . . . 851 543 948 531 622 523 1492 266 709 65 . Seismic 5554 | 1 726 1564 109 . . . . 420 98 . . . 822 2 . . . . . 2 268 211 827 504 Cloaking 439 | . . . . . . . . . . . . . . . . . . . . . . 140 299 . Jamming 6261 | . . . . . . . . . . . . . 468 853 543 644 356 663 522 1505 411 296 . . Robot Analysis Total . | . . . . . . . . . . . . . . . . . . . . . . . . . Derelict Logs Recovered 7 | . . 3 . . . . . . . . . . . 3 1 . . . . . . . . . Drone Launches . | . . . . . . . . . . . . . . . . . . . . . . . . . Drone Recoveries . | . . . . . . . . . . . . . . . . . . . . . . . . . Exploration | -11 -10 -10 -8 -8 -7 -7 -7 -5 -5 -5 -5 -5 -4 -4 -4 -4 -3 -3 -3 -2 -2 -2 -1 -1 ------------- Run | Yrd Mat Sub Mat Gar Fac Sto Rec Fac Ext Cet Arc Hub Fac Upp Upp War Pro Res Tes Res Qua Frg Acc Com Turns Passed 33376 | 131 726 2575 3209 2478 638 609 8077 844 1768 622 1228 379 846 853 543 1033 534 663 547 1516 675 1483 895 504 Spaces Moved 18857 | 40 248 770 822 750 367 168 1336 494 724 255 468 151 567 874 531 1105 683 1003 792 2652 769 1474 1021 793 Core 2 | 2 . . . . . . . . . . . . . . . . . . . . . . . . Treads 5914 | 38 248 770 538 750 . 89 635 402 579 . . . 121 . . 819 683 242 . . . . . . Legs 8714 | . . . . . . . . . 145 255 468 151 446 874 531 286 . . . 2425 769 1474 890 . Wheels 1523 | . . . 284 . 367 79 701 92 . . . . . . . . . . . . . . . . Hover 2704 | . . . . . . . . . . . . . . . . . . 761 792 227 . . 131 793 Flight . | . . . . . . . . . . . . . . . . . . . . . . . . . Fastest Speed 42 | 50 160 320 145 240 145 145 103 130 130 190 190 190 96 96 96 67 67 47 42 45 45 45 45 45 Average Speed 113 | 154 253 320 286 240 145 203 176 131 167 190 190 190 126 96 96 73 67 52 46 46 45 45 45 45 Slowest Speed 560 | 160 320 320 560 240 145 480 240 145 220 190 190 190 190 96 96 96 67 67 52 52 45 45 45 45 Overloaded Moves 10 | . . . . . . . . . . . . . . . . . . . 10 . . . . . Propulsion Burnouts . | . . . . . . . . . . . . . . . . . . . . . . . . . Robots Hopped . | . . . . . . . . . . . . . . . . . . . . . . . . . Potential Cave-ins 14 | . . . . . . . . . . . . 2 . . . 1 . . 2 7 2 . . . Cave-ins Triggered 3 | . . . . . . . . . 1 . . . . . . 1 . . . 1 . . . . Teleports 1 | . . . . . . . . . . . . . . . . . . . . . . 1 . . Exploration Rate (%) 55 | 3 54 44 77 83 19 44 98 15 82 59 97 11 21 93 61 87 78 26 85 51 89 43 37 27 Regions Visited 24 Branch Regions 15 Pre-discovered Areas 9 | . . 1 4 . . . 1 . . . . . . 2 1 . . . . . . . . . Known Exits Taken 15 | . . . 1 . 1 1 . 1 . . . 1 1 1 1 1 1 1 1 1 1 1 . . Unknown Exits Taken 8 | 1 1 1 . . . . 1 . 1 1 1 . . . . . . . . . . . 1 . Scrap Searched 9 | . . 1 . . . . . . . . . . . 3 1 . 4 . . . . . . . Spaces Dug 219 | . 9 . 7 16 2 . 20 9 . . . 6 17 3 . . 33 18 19 4 11 14 5 26 Terrain Destroyed 733 | . 31 6 72 77 10 36 24 23 55 4 48 12 35 7 . 2 51 30 28 8 19 32 78 45 Melee 20 | . . . . . . . 19 1 . . . . . . . . . . . . . . . . Projectile 382 | . . . 2 2 3 19 5 9 33 4 48 12 32 7 . 2 25 30 28 8 19 31 20 43 AOE 328 | . 31 6 70 75 7 17 . 13 22 . . . 3 . . . 26 . . . . . 58 . Terrain Rammed . | . . . . . . . . . . . . . . . . . . . . . . . . . Walls Destroyed . | . . . . . . . . . . . . . . . . . . . . . . . . . Machines Disabled . | . . . . . . . . . . . . . . . . . . . . . . . . . Actions | -11 -10 -10 -8 -8 -7 -7 -7 -5 -5 -5 -5 -5 -4 -4 -4 -4 -3 -3 -3 -2 -2 -2 -1 -1 --------- Run | Yrd Mat Sub Mat Gar Fac Sto Rec Fac Ext Cet Arc Hub Fac Upp Upp War Pro Res Tes Res Qua Frg Acc Com Total 29401 | 73 300 857 1497 1310 421 284 6925 638 1172 367 724 212 668 882 564 1324 724 1100 920 2924 1060 2116 1425 914 Wait 8163 | . . 51 463 426 3 17 5371 54 142 78 194 34 30 . 33 180 2 33 42 178 155 294 326 57 Move 18832 | 39 247 769 822 748 366 167 1335 493 723 254 467 150 566 873 530 1104 682 1002 791 2650 768 1473 1020 793 Hop . | . . . . . . . . . . . . . . . . . . . . . . . . . Pick Up 255 | 7 8 6 37 11 7 10 21 15 14 5 4 2 12 1 . 8 . 6 8 13 19 29 9 3 Fast Attach 136 | 5 6 3 14 4 2 1 1 6 10 3 5 . 5 . . 5 2 3 5 13 10 19 6 8 Attach 105 | 2 1 3 11 3 1 10 2 7 5 1 1 . 4 . . 6 . 2 3 7 11 15 7 3 Detach 46 | . . 3 . . 1 . 3 . 1 1 1 . 2 . . 2 . . 3 6 7 9 5 2 Swap 172 | . 6 3 14 22 5 8 3 3 10 . 1 5 6 2 . 2 3 3 6 2 16 41 9 2 Drop 324 | . 3 . 32 12 6 4 30 14 25 11 8 3 12 1 . 15 2 8 18 25 27 47 12 9 Fire 991 | 20 25 19 99 74 29 66 12 44 54 14 43 16 23 5 . 2 33 40 44 29 46 187 30 37 Melee 86 | . . . . . . . 84 1 . . . . . . . . . . . . 1 . . . Ram 4 | . . . . . 1 . 1 . . . . . . . . . . 1 . . . . 1 . Kick 5 | . . . . . . . . . . . . 2 2 . 1 . . . . . . . . . Crush 20 | . 4 . 5 . . 1 5 1 1 . . . 1 . . . . 2 . . . . . . Escape Stasis 32 | . . . . 10 . . . . 14 . . . 5 . . . . . . 1 . 2 . . Rewire 230 | . . . . . . . 57 . 173 . . . . . . . . . . . . . . . Trap . | . . . . . . . . . . . . . . . . . . . . . . . . . Miscellaneous . | . . . . . . . . . . . . . . . . . . . . . . . . . Route ------- -11/Scrapyard -10/Materials (discovered 3 exits: [*Mat] / [*Min] / [*Sub]) -10/Subcaves -8/Materials (discovered 4 exits: *Fac x3 / Gar) -8/Garrison (discovered 3 exits: *Fac x3) -7/Factory (discovered 4 exits: [*Fac] / *Sto / Low x2) -7/Storage -7/Recycling -5/Factory -5/Extension (discovered 2 exits: *Fac / *Cet) -5/Cetus (discovered 2 exits: *Fac / [*Arc]) -5/Archives (discovered 3 exits: *Fac / *Hub x2) -5/Hub_04(d) -4/Factory (discovered 3 exits: *Res / *Upp x2) -4/Upper Caves -4/Upper Caves (discovered 2 exits: *Res / *War) -4/Warlord -3/Proximity Caves -3/Research (discovered 4 exits: *Res / Arm / *Tes x2) -3/Testing -2/Research (discovered 4 exits: *Acc x2 / *Qua x2) -2/Quarantine (discovered 3 exits: *Acc / [*Sec] / *Frg) -2/Protoforge -1/Access -1/Command History --------- Turn | Location | Event 13 | -11/Scrapyard | Discovered new exit (range 16) 132 | -11/Scrapyard | Entered Materials 302 | -10/Materials | Build established: Mutant 538 | -10/Materials | Discovered new exit (range 12) 705 | -10/Materials | Discovered new exit (range 14) 833 | -10/Materials | Discovered new exit (range 9) 858 | -10/Materials | Entered Subcaves 859 | -10/Subcaves | Approached by a straggling Scientist 1063 | -10/Subcaves | Learned location of 1 exit from Materials 1104 | -10/Subcaves | Learned location of Storage (-7) 1171 | -10/Subcaves | Learned 2 Materials zone layouts 2418 | -10/Subcaves | A Subdweller sparked back to life 2418 | -10/Subcaves | A Subdweller sparked back to life 2418 | -10/Subcaves | A Subdweller sparked back to life 2439 | -10/Subcaves | Core integrity fell below 50% 2467 | -10/Subcaves | Found Prototype Protection 2468 | -10/Subcaves | Identified Gun Armor 2469 | -10/Subcaves | Attached Gun Armor, gained temporary slots: Weapon x2 3179 | -10/Subcaves | Discovered new exit (range 5) 3189 | -10/Subcaves | A swath of the cavern ceiling suddenly collapsed 3286 | -10/Subcaves | Build established: Gunner 3433 | -10/Subcaves | Entered Materials 3433 | -8/Materials | Evolved 4 slots: Propulsion x2, Utility x2 3434 | -8/Materials | Identified exit to Factory 3586 | -8/Materials | Lost 3 parts (1p1n1w) 3943 | -8/Materials | Build established: Scavenger-Mutant 5943 | -8/Materials | Central database locked down 6087 | -8/Materials | Learned Factory fabricator intel 6142 | -8/Materials | Learned location of Zion (-7) 6267 | -8/Materials | Learned location of 1 exit from Extension 6291 | -8/Materials | Build established: Mutant 6642 | -8/Materials | Identified exit to Garrison 6642 | -8/Materials | Entered Garrison 6938 | -8/Garrison | Triggered checkpoint 7047 | -8/Garrison | Garrison Relay disabled 7166 | -8/Garrison | Build established: Scavenger-Mutant 7664 | -8/Garrison | Triggered checkpoint 7711 | -8/Garrison | Destroyed 9 combat bots 7787 | -8/Garrison | Discovered exit to Factory (range 10) 7858 | -8/Garrison | Triggered checkpoint 7902 | -8/Garrison | Garrison Relay disabled 8349 | -8/Garrison | Discovered exit to Factory (range 9) 8441 | -8/Garrison | Garrison Relay disabled 8631 | -8/Garrison | Triggered checkpoint 8686 | -8/Garrison | Triggered checkpoint 8751 | -8/Garrison | Learned Factory security intel 8873 | -8/Garrison | Triggered checkpoint 8916 | -8/Garrison | Discovered exit to Factory (range 12) 8942 | -8/Garrison | Attempted to access garrison exit controls, blocked by remote lockdown 9120 | -8/Garrison | Entered Factory 9120 | -7/Factory | Evolved 2 slots: Propulsion x1, Weapon x1 9122 | -7/Factory | Loaded intel: 6 fabricator locations 9357 | -7/Factory | Identified exit to Storage 9357 | -7/Factory | Identified exit to Lower Caves 9603 | -7/Factory | Build established: Scavenger-Gunner 9679 | -7/Factory | Discovered new exit (range 15) 9758 | -7/Factory | Entered Storage 9759 | -7/Storage | Identified exit to Recycling 9886 | -7/Storage | Garrison activated, responded to threat 10158 | -7/Storage | First assault squad dispatched 10222 | -7/Storage | Lost 5 parts (4n1u) 10313 | -7/Storage | Destroyed 8 combat bots 10358 | -7/Storage | Used back door to open Recycling access 10367 | -7/Storage | Entered Recycling 10457 | -7/Recycling | Build established: Scavenger-Tank 12296 | -7/Recycling | Discovered new exit (range 15) 12950 | -7/Recycling | Entered Scraplab 12956 | -7/Recycling | Found Prototype Device 12956 | -7/Recycling | Identified Scrap Engine 13538 | -7/Recycling | Build established: Commander-Mutant 16546 | -7/Recycling | Build established: Commander-Construct 18444 | -7/Recycling | Entered Factory 18444 | -5/Factory | Accompanied by 5 allies 18444 | -5/Factory | Evolved 4 slots: Power x1, Utility x3 18445 | -5/Factory | Identified exit to Extension 18573 | -5/Factory | Lost 4 allies 18700 | -5/Factory | Spotted B-75 Beast 18788 | -5/Factory | Build established: Construct 18793 | -5/Factory | Destroyed B-75 Beast 19092 | -5/Factory | Cargo convoy interrupted 19288 | -5/Factory | Entered Extension 19289 | -5/Extension | Identified exit to Factory 20081 | -5/Extension | Build established: Commander-Construct 20155 | -5/Extension | Spotted B-75 Beast 20169 | -5/Extension | Destroyed B-75 Beast 20190 | -5/Extension | Spotted B-75 Beast 20227 | -5/Extension | Allies destroyed B-75 Beast 20254 | -5/Extension | Lost 6 allies 20287 | -5/Extension | Rescued a captive Derelict 20345 | -5/Extension | Rescued a captive Derelict 20399 | -5/Extension | Rescued a captive Derelict 20403 | -5/Extension | Rescued a captive Derelict 20423 | -5/Extension | Rescued A7 20527 | -5/Extension | Crushed by falling debris 20547 | -5/Extension | Build established: Scavenger-Construct 20705 | -5/Extension | Rescued a captive Derelict 20706 | -5/Extension | Rescued a captive Derelict 20731 | -5/Extension | Lost 5 allies 20848 | -5/Extension | Rescued a captive Derelict 20852 | -5/Extension | Build established: Commander-Construct 20852 | -5/Extension | Rescued a captive Derelict 20854 | -5/Extension | Rescued a captive Derelict 20876 | -5/Extension | Rescued a captive Derelict 20899 | -5/Extension | Rescued a captive Derelict 20900 | -5/Extension | Rescued a captive Derelict 20946 | -5/Extension | Discovered new exit (range 6) 21056 | -5/Extension | Entered Cetus 21056 | -5/Cetus | Accompanied by 23 allies (A7) 21061 | -5/Cetus | Acquired a Cetus Manufacturing Module code from A7 21095 | -5/Cetus | Spotted Cetus Guard 21095 | -5/Cetus | Spotted Cetus Guard 21099 | -5/Cetus | Spotted Cetus Guard 21104 | -5/Cetus | Spotted Cetus Guard 21111 | -5/Cetus | Allies destroyed Cetus Guard 21127 | -5/Cetus | Allies destroyed Cetus Guard 21129 | -5/Cetus | Allies destroyed Cetus Guard 21163 | -5/Cetus | Lost 8 allies 21220 | -5/Cetus | Started Cetus Manufacturing Module 21245 | -5/Cetus | Manufactured an Enhanced Grunt 21248 | -5/Cetus | Discovered new exit (range 16) 21270 | -5/Cetus | Manufactured an Enhanced Grunt 21295 | -5/Cetus | Manufactured an Enhanced Grunt 21296 | -5/Cetus | Spotted Cetus Guard 21297 | -5/Cetus | Spotted Cetus Guard 21302 | -5/Cetus | Spotted Cetus Guard 21303 | -5/Cetus | Spotted Cetus Guard 21312 | -5/Cetus | Allies destroyed Cetus Guard 21317 | -5/Cetus | Destroyed Cetus Guard 21320 | -5/Cetus | Manufactured an Enhanced Grunt 21320 | -5/Cetus | Destroyed Cetus Guard 21321 | -5/Cetus | Allies destroyed Cetus Guard 21333 | -5/Cetus | Discovered exit to Factory (range 15) 21343 | -5/Cetus | Met Revision 17 21345 | -5/Cetus | Manufactured an Enhanced Grunt 21678 | -5/Cetus | Entered Archives 21678 | -5/Archives | Accompanied by 19 allies (A7) 21758 | -5/Archives | Lost 3 allies 21758 | -5/Archives | Discovered new exit (range 15) 21775 | -5/Archives | Discovered new exit (range 16) 22058 | -5/Archives | Discovered exit to Factory (range 16) 22906 | -5/Archives | Entered Hub_04(d) 22906 | -5/Hub_04(d) | Accompanied by 14 allies 22906 | -5/Hub_04(d) | Discovered exit to Factory (range 11) 23156 | -5/Hub_04(d) | Network Hub disabled 23224 | -5/Hub_04(d) | Spotted Lightning 23233 | -5/Hub_04(d) | Lost 12 allies 23250 | -5/Hub_04(d) | Spotted Lightning 23253 | -5/Hub_04(d) | Spotted Lightning 23285 | -5/Hub_04(d) | Entered Factory 23285 | -4/Factory | Accompanied by 1 ally 23285 | -4/Factory | Evolved 2 slots: Propulsion x1, Utility x1 23481 | -4/Factory | Build established: Scavenger-Construct 23773 | -4/Factory | Identified exit to Upper Caves 23959 | -4/Factory | Discovered new exit (range 16) 24090 | -4/Factory | Found Prototype Launcher 24090 | -4/Factory | Identified Tesla Bomb Launcher 24131 | -4/Factory | Entered Upper Caves 24137 | -4/Upper Caves | Met a Warlord Commander 24138 | -4/Upper Caves | Learned location of Warlord (-4) 24139 | -4/Upper Caves | Warlord Commander delivered Encrypted Comm Array 24144 | -4/Upper Caves | Learned Research emergency access door positions 24419 | -4/Upper Caves | Build established: Construct 24871 | -4/Upper Caves | Learned location of Testing (-3) 24981 | -4/Upper Caves | Discovered new exit (range 5) 24983 | -4/Upper Caves | Identified exit to Upper Caves 24984 | -4/Upper Caves | Entered another Upper Caves area 25006 | -4/Upper Caves | Discovered new exit (range 7) 25010 | -4/Upper Caves | Identified exit to Research 25016 | -4/Upper Caves | Learned location of Armory (-3) 25366 | -4/Upper Caves | Discovered new exit (range 4) 25370 | -4/Upper Caves | Identified exit to Warlord 25394 | -4/Upper Caves | Spotted B-86 Titan 25527 | -4/Upper Caves | Entered Warlord 25689 | -4/Warlord | Visited the Vortex Lab 25698 | -4/Warlord | Found Prototype Energy Cannon 25698 | -4/Warlord | Identified Vortex Driver 25707 | -4/Warlord | Warlord's base attacked by MAIN.C 25863 | -4/Warlord | Met Warlord 25878 | -4/Warlord | Learned Research trap positions 25878 | -4/Warlord | Learned Quarantine stockpile data 25879 | -4/Warlord | Learned Research scanalyzer intel 26057 | -4/Warlord | Warlord forces counterattacked 26171 | -4/Warlord | Found Prototype Device 26171 | -4/Warlord | Identified System Purifier 26308 | -4/Warlord | Found Prototype Reactor 26382 | -4/Warlord | Warlord base infiltrated, sounded retreat 26463 | -4/Warlord | Spotted Striker 26476 | -4/Warlord | Destroyed Striker 26488 | -4/Warlord | Crushed by falling debris 26501 | -4/Warlord | Lost 4 allies 26536 | -4/Warlord | Spotted Executioner 26543 | -4/Warlord | Discovered new exit (range 15) 26559 | -4/Warlord | Identified exit to Proximity Caves 26560 | -4/Warlord | Entered Proximity Caves 26561 | -3/Proximity Caves | Lost 3 allies 26740 | -3/Proximity Caves | Spotter reported a threat 27036 | -3/Proximity Caves | Discovered exit to Research (range 8) 27094 | -3/Proximity Caves | Entered Research 27094 | -3/Research | Evolved 2 slots: Utility x2 27095 | -3/Research | Loaded intel: 100 trap records 27097 | -3/Research | Loaded intel: 6 scanalyzer locations 27103 | -3/Research | Found Prototype Device 27132 | -3/Research | Identified Exp. Thermal Shield 27173 | -3/Research | Found Quantum Capacitor 27180 | -3/Research | Central database locked down 27290 | -3/Research | Discovered new exit (range 10) 27294 | -3/Research | Revision forces began assault on 0b10 27307 | -3/Research | Identified exit to Research 27397 | -3/Research | Identified exit to Armory 27397 | -3/Research | Identified exit to Testing 27428 | -3/Research | Met up with Revision 17++ 27501 | -3/Research | Spotted B-86 Titan 27757 | -3/Research | Entered Testing 27904 | -3/Testing | Found Fusion Bomb Launcher 27990 | -3/Testing | Found Prototype Protection 27993 | -3/Testing | Found Prototype Protection 27993 | -3/Testing | Identified Hvy. Regenerative Plating 28082 | -3/Testing | Discovered exit to Research (range 9) 28089 | -3/Testing | Watched by a mysterious "MATRIX" hacker. 28097 | -3/Testing | Found Prototype Energy Gun 28097 | -3/Testing | Identified Tachyon Dispersion Ray 28230 | -3/Testing | Found Prototype Ballistic Cannon 28302 | -3/Testing | Spotted PG-00CSK6SEJR 28304 | -3/Testing | Entered Research 28304 | -2/Research | Warlord forces began assault on 0b10 28304 | -2/Research | Evolved 2 slots: Utility x1, Weapon x1 28305 | -2/Research | Identified exit to Access 28305 | -2/Research | Identified exit to Quarantine 28329 | -2/Research | Distinguished unit "Viscera Detail" dispatched to help 28337 | -2/Research | Identified Perforator 28371 | -2/Research | Met up with Warlord 28414 | -2/Research | Research machine network offline 28471 | -2/Research | Found Prototype Launcher 28471 | -2/Research | Identified Adv. Micro-nuke Launcher 28484 | -2/Research | Found Adv. Micro-nuke Launcher 28728 | -2/Research | Borebot progress halted 28749 | -2/Research | Borebot progress halted 28774 | -2/Research | Spotted Striker 28776 | -2/Research | Spotted Executioner 28780 | -2/Research | Discovered exit to Access (range 8) 28822 | -2/Research | Spotted Executioner 28873 | -2/Research | Lost 14 allies 28923 | -2/Research | Found Prototype Launcher 28923 | -2/Research | Identified Enh. Gamma Bomb Array 28969 | -2/Research | Destroyed Executioner 29053 | -2/Research | Borebot progress halted 29249 | -2/Research | Lost 4 allies 29335 | -2/Research | Spotted Striker 29335 | -2/Research | Spotted Striker 29338 | -2/Research | Crushed by falling debris 29341 | -2/Research | Destroyed Striker 29346 | -2/Research | Found Prototype Processor 29346 | -2/Research | Identified Exp. Targeting Computer 29351 | -2/Research | Spotted Striker 29372 | -2/Research | Spotted Striker 29377 | -2/Research | Lost 4 allies 29384 | -2/Research | Spotted Executioner 29493 | -2/Research | Found Prototype Processor 29808 | -2/Research | Given Cave Seal Controls access code 29820 | -2/Research | Entered Quarantine 29836 | -2/Quarantine | Found Alien Artifact 29838 | -2/Quarantine | Found Alien Artifact 29904 | -2/Quarantine | Lost 3 allies 29935 | -2/Quarantine | Identified Vortex Chain Reactor 29944 | -2/Quarantine | Found Alien Impact Weapon 30067 | -2/Quarantine | Identified Exp. Core Analyzer 30069 | -2/Quarantine | Found Alien Artifact 30069 | -2/Quarantine | Identified Subatomic Replicator 30132 | -2/Quarantine | Discovered exit to Access (range 11) 30150 | -2/Quarantine | Identified Hpw. Transdimensional Reconstructor 30204 | -2/Quarantine | Build established: Gunner 30204 | -2/Quarantine | Scanned by Researcher 30260 | -2/Quarantine | Identified Core Stripper 30264 | -2/Quarantine | Identified SHELL Armor 30270 | -2/Quarantine | Spotted Fortress 30274 | -2/Quarantine | Destroyed Fortress 30295 | -2/Quarantine | Found Prototype Device 30295 | -2/Quarantine | Identified Thermal Barrier 30301 | -2/Quarantine | Found Prototype Device 30301 | -2/Quarantine | Identified Exp. Force Field 30308 | -2/Quarantine | Found Prototype Device 30309 | -2/Quarantine | Identified Exp. EM Shield 30362 | -2/Quarantine | Discovered new exit (range 5) 30362 | -2/Quarantine | Discovered new exit (range 6) 30364 | -2/Quarantine | Identified exit to Protoforge 30495 | -2/Quarantine | Entered Protoforge 30508 | -2/Protoforge | Spotted B-90 Cyclops 30512 | -2/Protoforge | Spotted Hotshot 30512 | -2/Protoforge | Spotted Hotshot 30512 | -2/Protoforge | Spotted Hotshot 30518 | -2/Protoforge | Build established: Skirmisher 30589 | -2/Protoforge | Spotted AP7-3 30589 | -2/Protoforge | Spotted AP7-3 30619 | -2/Protoforge | Spotted Hotshot 30620 | -2/Protoforge | Superfortress began startup sequence 30623 | -2/Protoforge | Spotted Hotshot 30624 | -2/Protoforge | Spotted Hotshot 30626 | -2/Protoforge | Destroyed Hotshot 30627 | -2/Protoforge | Spotted Hotshot 30628 | -2/Protoforge | Destroyed Hotshot 30629 | -2/Protoforge | Destroyed Hotshot 30629 | -2/Protoforge | Spotted Hotshot 30630 | -2/Protoforge | Destroyed Hotshot 30632 | -2/Protoforge | Destroyed Hotshot 30731 | -2/Protoforge | Identified Dimensional Node Initializer 30731 | -2/Protoforge | Initialized slip node 30769 | -2/Protoforge | Found Prototype Device 30769 | -2/Protoforge | Identified Exp. System Purifier 30776 | -2/Protoforge | Found Prototype Storage 30776 | -2/Protoforge | Identified Cep. Chromion Battery 30783 | -2/Protoforge | Found Cep. Chromion Battery 30788 | -2/Protoforge | Found Prototype Device 30788 | -2/Protoforge | Identified Cep. Recoil Nullifier 30825 | -2/Protoforge | Garrison activated, responded to threat 30851 | -2/Protoforge | Build established: Gunner 30866 | -2/Protoforge | Found Prototype Device 30868 | -2/Protoforge | Spotted Immortal 30868 | -2/Protoforge | Spotted Immortal 30882 | -2/Protoforge | Destroyed Immortal 30900 | -2/Protoforge | Destroyed Immortal 30907 | -2/Protoforge | Spotted Hotshot 30907 | -2/Protoforge | Spotted Hotshot 30907 | -2/Protoforge | Spotted Hotshot 30907 | -2/Protoforge | Spotted Decapitator 30907 | -2/Protoforge | Spotted Decapitator 30907 | -2/Protoforge | Spotted Decapitator 30907 | -2/Protoforge | Spotted Decapitator 30921 | -2/Protoforge | Identified Crosscalibrator 30952 | -2/Protoforge | Found Cep. Helical Railcannon 30957 | -2/Protoforge | Found Faulty Cep. Plasma Driver 30958 | -2/Protoforge | Spotted V779-w 30959 | -2/Protoforge | Found Cep. Plasma Driver 30960 | -2/Protoforge | Spotted V896-v 30960 | -2/Protoforge | Spotted V787-w 30960 | -2/Protoforge | Spotted V603-h 30961 | -2/Protoforge | Found Cep. Plasma Driver 30969 | -2/Protoforge | Spotted Hotshot 30988 | -2/Protoforge | Destroyed Hotshot 30988 | -2/Protoforge | Destroyed Hotshot 30989 | -2/Protoforge | Destroyed Hotshot 30990 | -2/Protoforge | Destroyed Hotshot 30995 | -2/Protoforge | First assault squad dispatched 31063 | -2/Protoforge | Destroyed 17 combat bots 31075 | -2/Protoforge | Spotted V616-q 31100 | -2/Protoforge | Spotted V503-c 31100 | -2/Protoforge | Spotted V730-z 31103 | -2/Protoforge | Spotted V154-n 31106 | -2/Protoforge | Destroyed V154-n 31109 | -2/Protoforge | Found Faulty Cep. Energy Mantle 31111 | -2/Protoforge | Found Cep. Energy Mantle 31116 | -2/Protoforge | Found Prototype Device 31116 | -2/Protoforge | Identified Exp. Thermal Defense Suite 31123 | -2/Protoforge | Found Prototype Device 31123 | -2/Protoforge | Identified Cep. Hardlight Director 31154 | -2/Protoforge | Destroyed V616-q 31156 | -2/Protoforge | Destroyed V503-c 31167 | -2/Protoforge | Destroyed V730-z 31213 | -2/Protoforge | Spotted Decapitator 31213 | -2/Protoforge | Spotted Decapitator 31215 | -2/Protoforge | Destroyed Decapitator 31216 | -2/Protoforge | Spotted Decapitator 31216 | -2/Protoforge | Spotted Decapitator 31223 | -2/Protoforge | Spotted Immortal 31225 | -2/Protoforge | Destroyed Decapitator 31225 | -2/Protoforge | Destroyed Decapitator 31225 | -2/Protoforge | Spotted Immortal 31227 | -2/Protoforge | Spotted Immortal 31228 | -2/Protoforge | Destroyed Decapitator 31266 | -2/Protoforge | Destroyed Immortal 31288 | -2/Protoforge | Destroyed Immortal 31374 | -2/Protoforge | Spotted V770-q 31374 | -2/Protoforge | Spotted V752-f 31380 | -2/Protoforge | Destroyed Immortal 31383 | -2/Protoforge | Spotted Immortal 31383 | -2/Protoforge | Spotted Immortal 31408 | -2/Protoforge | System corruption reached 10% 31455 | -2/Protoforge | Found Prototype Device 31455 | -2/Protoforge | Identified Cep. Matter Streamer 31461 | -2/Protoforge | Found Cep. NT7 Matterbank 31485 | -2/Protoforge | Found Prototype Storage 31485 | -2/Protoforge | Identified Cep. Antigrav Storage Unit 31518 | -2/Protoforge | Additional patrols dispatched to research labs 31525 | -2/Protoforge | Found Transdimensional Reconstructor 31797 | -2/Protoforge | Found Cep. Cloak Mesh 31799 | -2/Protoforge | Found Cep. Thermoelectric Network 31815 | -2/Protoforge | Spotted AP7-3 31888 | -2/Protoforge | Warped through subspace to slip node 31888 | -2/Protoforge | Spotted Hotshot 31888 | -2/Protoforge | Spotted Hotshot 31888 | -2/Protoforge | Spotted Hotshot 31888 | -2/Protoforge | Spotted Hotshot 31943 | -2/Protoforge | Destroyed Hotshot 31969 | -2/Protoforge | Discovered exit to Access (range 16) 31978 | -2/Protoforge | Entered Access 31978 | -1/Access | Evolved 2 slots: Power x1, Utility x1 32228 | -1/Access | First assault squad dispatched 32398 | -1/Access | Spotted B-99 Colossus 32414 | -1/Access | Spotted B-99 Colossus 32419 | -1/Access | Spotted B-99 Colossus 32463 | -1/Access | System corruption reached 10% 32541 | -1/Access | Discovered new exit (range 7) 32873 | -1/Access | Entered Command 32977 | -1/Command | Disengaged cave seal 32977 | -1/Command | Derelicts emerged from the dark tunnel 32977 | -1/Command | Welcomed Warlord to Command 32990 | -1/Command | Spotted B-99 Colossus 33045 | -1/Command | Destroyed B-99 Colossus 33076 | -1/Command | Lost 4 allies 33225 | -1/Command | Lost 4 allies 33228 | -1/Command | Destroyed 5R-HUJ(g) 33229 | -1/Command | Attacked by Warlord forces 33313 | -1/Command | Spotted 1Z-OER(K) 33373 | -1/Command | First assault squad dispatched 33377 | -1/Command | Self-destructed Last Messages --------------- 33341_ ALERT: Alarm triggered, dispatching investigation squad. 33344_ TF Node disabled. 33344_ Adv. Sensor Array tumbles out of TF Node. 33344_ Adv. Signal Interpreter tumbles out of TF Node. 33345_ Plasma Slug penetrates Wall. 33346_ Adv. Weapon Cycler destroyed. 33346_ Slug penetrates Wall. 33347_ Penetrated by HV Slug. 33347_ HV Slug penetrates Wall. 33351_ Slug penetrates Door. 33351_ Penetrated by Slug. 33352_ 38K 1SP/|B6BXR RF%XC4HGZ| 33362_ Plasma Slug penetrates Wall. 33364_ HERF Cannon+ destroyed. 33365_ Slug penetrates Wall. 33367_ Critical hit (Destroy). 33373_ System corrupted: Matter fused (-5). 33373_ ALERT: Unidentified disturbance in Zone 3B, assault force dispatched. 33373_ Plasma Slug penetrates Wall. Map ----- +----------------------------------------------------+ | ?????????????????????????????????????????????????? | | ?????????????????????????????????????????????????? | | ?????????????????????????????????????????????????? | | ?????????????????????????????????????????????????? | | ?????????????????????????????????????????????????? | | ?????????????????????????????????????????????????? | | ?????????????????????????????????????????????????? | | ?????????????????????????????????????????????????? | | ?????????????????????????????????????????????##### | | ?????????????????????????????????????????????# [ | | ?????????????????????????????????????????????# | | ?????????????????????????????????????????????# | | ?????????????????????????????????????????????# | | ?????????????????????????????????????????????# | | ?????????????????????????????????????######### | | ?????????????????????????????????#"""""""" ""####+ | | ????????????????????????????????## """"T"" ### | | ???????H????????????????????????# # " | | ????????????????????????????????#= # | | ????????????????????????????????# ##% | | ????????????????????????????????# %#= | | ????????????????????????????????????"T"" "% | | ????????????????????????????????????"""" "" | | ???????????????#####+###################+####"" | | ???????????????+ xx!% % % | | ???????????????# *= = % %@ % % # | | ????????????????#%######;#####;############## ## | | ?????????????????!#####;##???###????????????### | | ????????????????? # ##?????????????????????# | | ????????##??????# # #?????????????????????# # | | ????????# #### # #????????????????######### | | ??????? "" # =#????????????????# | | ??????? T" + #????????????????# | | ????????# ### # #????????????????# | | ???????????????# # #????????????????# | | ???????????????# # #?????????????####+## | | ???????????????# " #?????????????# # | | ??????????????## ######?????????????# # | | ??????????????#% #?????????????????# " | | ?????????????## " #?????????????????# !/ + | | ????????????##" #????????????????## !/ "#####+ | | ???????????## # #????????????????#" !/ ##?# | | ############"### ##????????????????## !#??# | | ##?# #??????????????????###"+"#??# | | #??# #????????????????????#" ##??# | | ]][ #??# #????????????????????#" #???# | | ]] #?## ##???######??????????#" #???#### | | ][ #?# ##### #??????????#" #??????? | | #?# #?????????##" #??????? | | #?#]! ! " #?????????# " #??????? | +----------------------------------------------------+ Best States ------------- Heat Dissipation 142 Coolant Potential 100 Energy Generation 65 Energy Capacity 1500 Matter Stores 300 Matter Capacity 300 Sight Range 23 Robot Scan Range 16 Terrain Scan Density 10 Jamming Range 16 Cloak Strength 6 Armor Coverage 900 Resistance: TH 50 Resistance: EM 75 Weapon Cycling 25 Evasion (%) 66 Targeting Accuracy 12 Core Analysis 8 Recoil Reduction 99 Offensive Hacking 38 Authchip Count 5 Item Schematics ----------------- Cld. Nuclear Pulse Thruster | -2/Protoforge | Archive Imp. Diametric Drive | -2/Protoforge | Archive Robot Schematics ------------------ M-13 Machinist | -8/Materials | Hacked R-10 Processor | -2/Protoforge | Archive W-44 Eye | -2/Protoforge | Archive A-15 Conveyor | -2/Protoforge | Archive Fabricated ------------ Nothing Repaired ---------- Nothing Studied --------- Beam Rifle | -8/Materials | Hacked HERF Cannon | -4/Factory | Hacked Lrn. Missile Launcher | -3/Research | Hacked Enh. Nova Cannon | -2/Quarantine | Hacked Alien Tech Used ----------------- Subatomic Replicator Core Stripper Dimensional Node Initializer Transdimensional Reconstructor Achievements -------------- None Challenges ------------ None Game ------ Seed SpliceDisruptionTether Manual? 0 Play Time 04:40:15 Cumulative 391.8 hours Start 2026.02.22 @ 07:29:20 End 2026.03.14 @ 06:44:07 Sessions 16 Manual Loads 0 Difficulty Rogue Special Mode None Game No. 150 Rogue 149 Adventurer 1 Explorer 0 Win Type - Total 15 Types 6/2/2/0/1/0/2/1/0/1 Lore% 63 Gallery% 80 Achievement% 70 Wizard Run 0 Options --------- Layout 0 ASCII 0 Keyboard 0 Movement Arrows Keybinds 0 Fullscreen 2 Font 24/Smallcaps Map View 76x50 Zoom Use 0% Tactical HUD 1 Map Filters NONE Filters NONE Steam 1 RUN: 0637eb84-1a7d-484d-aed9-274b62b6affa